fUST/lending_fUST_20250829
["ID","MTS","AMOUNT","RATE_DAILY","PERIOD"]
[381920007,1756408867552,-2000.0,0.00038,38]
[381920008,1756408867576,-1000.0,0.00038,120]
[381920009,1756408867600,-13118.42,0.00038,14]
[381920010,1756408867623,-301.56347831,0.00038,120]
[381920011,1756408867647,-2000.0,0.00038082,120]
[381920012,1756408867671,-200.0,0.00038208,120]
[381920013,1756408867696,-200.0,0.00038282,120]
[381920014,1756408867720,-2000.0,0.00038356,120]
[381920015,1756408867745,-2098.62,0.00038356,120]
[381920016,1756408867769,-199.0,0.00038493,14]
[381920017,1756408867795,-2000.0,0.0003863,120]
[381920018,1756408867818,-183.83709886,0.0003868,15]
[381920019,1756408867842,-1044.37603482,0.000387,120]
[381920020,1756408867870,-1000.0,0.0003875,30]
[381920021,1756408867898,-492.0,0.0003875,30]
[381920022,1756408867924,-8634.87026209,0.00038892,32]
[381920023,1756408867947,-2000.0,0.00038904,120]
[381920024,1756408867973,-2098.62,0.00038904,120]
[381920025,1756408867997,-351.12833783,0.0003899,120]
[381920026,1756408868024,-1000.0,0.00039,120]
[381920027,1756408868048,-199.0,0.00039178,15]
[381920028,1756408868073,-2000.0,0.00039178,120]
[381920029,1756408868098,-2000.0,0.00039452,120]
[381920030,1756408868123,-2098.62,0.00039452,120]
[381920031,1756408868147,-1691.248607,0.00039452,120]
[381920032,1756408868174,-788.70401,0.000397,120]
[381920033,1756408868200,-2000.0,0.00039726,120]
[381920034,1756408868226,-199.0,0.00039863,16]
[381920035,1756408868251,-362.47509422,0.000399,120]
[381920036,1756408868275,-362.47509418,0.000399,120]
[381920037,1756408868299,-362.47509418,0.000399,120]
[381920038,1756408868324,-362.47509418,0.000399,120]
[381920039,1756408868350,-362.47509418,0.000399,120]
[381920040,1756408868374,-362.47509418,0.000399,120]
[381920041,1756408868400,-29571.913077,0.0004,10]
[381920042,1756408868425,-160.0,0.0004,10]
[381920043,1756408868450,-323.71089904,0.0004,120]
[381920044,1756408868474,-1000.0,0.0004,120]
[381920045,1756408868498,-199.999999,0.0004,120]
[381920046,1756408868521,-914.76098258,0.0004,120]
[381920047,1756408868544,-2000.0,0.0004,60]
[381920048,1756408868568,-1746.53399211,0.0004,120]
[381920049,1756408868592,-217.27834477,0.0004,30]
[381920050,1756408868619,-217.27834477,0.0004,120]
[381920051,1756408868643,-217.27834477,0.0004,10]
[381920052,1756408868667,-216.18903889,0.0004,30]
[381920053,1756408868690,-216.18903889,0.0004,120]
[381920054,1756408868713,-216.18903889,0.0004,10]
[381920055,1756408868737,-160.0,0.0004,30]
[381920056,1756408868762,-417.15472785,0.0004,30]
[381920057,1756408868786,-417.15472785,0.0004,120]
[381920058,1756408868810,-417.15472785,0.0004,10]
[381920060,1756408868835,-160.0,0.0004,30]
[381920061,1756408868865,-160.0,0.0004,120]
[381920062,1756408868889,-160.0,0.0004,30]
[381920063,1756408868919,-2098.62,0.0004,120]
[381920064,1756408868943,-160.0,0.0004,30]
[381920065,1756408868967,-160.0,0.0004,120]
[381920066,1756408868992,-160.0,0.0004,30]
[381920067,1756408869017,-425.52029335,0.0004,30]
[381920068,1756408869042,-160.0,0.0004,120]
[381920069,1756408869067,-845.47023312,0.0004,30]
[381920070,1756408869091,-845.47023312,0.0004,120]
[381920071,1756408869115,-529.67291817,0.0004,30]
[381920072,1756408869140,-529.67291817,0.0004,120]
[381920073,1756408869164,-293.85068442,0.00040028,30]
[381920074,1756408869187,-1100.0,0.00040061,30]
[381920075,1756408869211,-1100.0,0.00040172,30]
[381920076,1756408869247,-1100.0,0.00040225,30]
[381920077,1756408869277,-153.0,0.000403,120]
[381920078,1756408869301,-500.0,0.00040322,30]
[381920079,1756408869325,-1100.0,0.00040384,30]
[381920080,1756408869353,-500.0,0.00040391,30]
[381920081,1756408869377,-1650.57948849,0.00040399,30]
[381920082,1756408869402,-199.0,0.00040547,17]
[381920083,1756408869427,-2098.62,0.00040547,120]
[381920084,1756408869455,-8634.87026209,0.00040619,36]
[381920085,1756408869480,-500.0,0.0004064,30]
[381920086,1756408869504,-500.0,0.00040645,30]
[381920087,1756408869529,-513.79371925,0.00040713,30]
[381920088,1756408869560,-1000.0,0.00041,120]
[381920089,1756408869591,-2098.62,0.00041095,120]
[381920090,1756408869615,-766.52,0.00041096,120]
[381920091,1756408869639,-500.0,0.00041096,31]
[381920092,1756408869664,-500.0,0.00041096,31]
[381920093,1756408869688,-500.0,0.00041096,31]
[381920094,1756408869712,-500.0,0.00041096,31]
[381920095,1756408869736,-211.00967775,0.00041096,31]
[381920096,1756408869760,-500.0,0.00041096,31]
[381920097,1756408869784,-500.0,0.00041096,31]
[381920098,1756408869807,-500.0,0.00041096,31]
[381920099,1756408869952,-500.0,0.00041096,31]
[381920100,1756408869978,-500.0,0.00041096,31]
[381920101,1756408870002,-500.0,0.00041096,31]
[381920102,1756408870026,-500.0,0.00041096,31]
[381920103,1756408870051,-500.0,0.00041096,31]
[381920104,1756408870076,-500.0,0.00041096,31]
[381920105,1756408870101,-500.0,0.00041096,31]
[381920106,1756408870125,-500.0,0.00041096,31]
[381920107,1756408870149,-500.0,0.00041096,31]
[381920108,1756408870174,-500.0,0.00041096,31]
[381920109,1756408870198,-190.11218642,0.00041096,31]
[381920110,1756408870223,-500.0,0.00041096,31]
[381920111,1756408870247,-500.0,0.00041096,31]
[381920112,1756408870271,-500.0,0.00041096,31]
[381920113,1756408870296,-500.0,0.00041096,31]
[381920114,1756408870320,-500.0,0.00041096,31]
[381920115,1756408870346,-500.0,0.00041096,31]
[381920116,1756408870375,-199.0,0.00041232,18]
[381920117,1756408870399,-362.47509418,0.00041533,120]
[381920118,1756408870425,-2098.62,0.00041643,120]
[381920119,1756408870449,-788.70401,0.000417,120]
[381920120,1756408870474,-199.0,0.00041917,19]
[381920121,1756408870498,-417.15472785,0.00042,10]
[381920122,1756408870522,-409.18065266,0.00042,60]
[381920123,1756408870548,-1000.0,0.00042,120]
[381920124,1756408870573,-1000.0,0.00042,120]
[381920125,1756408870597,-2098.62,0.00042191,120]
[381920126,1756408870621,-500.0,0.00042281,30]
[381920127,1756408870645,-199.0,0.00042602,20]
[381920128,1756408870668,-208.0,0.0004262,30]
[381920129,1756408870696,-1000.0,0.00042625,30]
[381920130,1756408870727,-791.0,0.00042625,30]
[381920131,1756408870751,-2098.62,0.00042739,120]
[381920132,1756408870776,-7773.55926943,0.000428,30]
[381920133,1756408870799,-46154.0339112,0.00043,120]
[381920134,1756408870822,-497.78682441,0.00043,120]
[381920135,1756408870848,-7545.75,0.00043,14]
[381920136,1756408870879,-208.16610247,0.00043287,21]
[381920137,1756408870902,-2098.62,0.00043287,120]
[381920138,1756408870926,-153.0,0.000434,120]
[381920139,1756408870950,-788.70401,0.000437,120]
[381920140,1756408870973,-1000.0,0.000438,90]
[381920141,1756408870997,-1000.0,0.000438,90]
[381920142,1756408871020,-2098.62,0.00043835,120]
[381920143,1756408871045,-881.52,0.00043835,120]
[381920144,1756408871069,-2000.0,0.00043836,10]
[381920145,1756408871093,-212.42014,0.00044,120]
[381920146,1756408871117,-1000.0,0.00044,120]
[381920147,1756408871142,-8634.87026209,0.00044072,43]
[381920148,1756408871167,-881.52,0.00044109,120]
[381920149,1756408871191,-361.95145508,0.000442,120]
[381920150,1756408871214,-208.0,0.0004422,30]
[381920151,1756408871239,-200.0,0.0004423,120]
[381920152,1756408871264,-362.47509418,0.00044322,120]
[381920153,1756408871290,-2098.62,0.00044383,120]
[381920154,1756408871315,-881.52,0.00044383,120]
[381920155,1756408871340,-1691.248607,0.00044384,120]
[381920156,1756408871368,-500.0,0.00044507,30]
[381920157,1756408871396,-881.52,0.00044657,120]
[381920158,1756408871423,-5029.55861862,0.0004481,96]
[381920159,1756408871453,-2098.62,0.00044931,120]
[381920160,1756408871480,-881.52,0.00044931,120]
[381920161,1756408871506,-1000.0,0.00044999,120]
[381920162,1756408871534,-1020.19041066,0.00045,120]
[381920163,1756408871558,-181.6881775,0.00045,120]
[381920164,1756408871584,-454.378,0.00045098,72]
[381920165,1756408871612,-881.52,0.00045205,120]
[381920166,1756408871638,-2098.62,0.00045479,120]
[381920167,1756408871664,-881.52,0.00045479,120]
[381920168,1756408871689,-788.70401,0.000457,120]
[381920169,1756408871714,-2000.0,0.00045727,60]
[381920170,1756408871741,-881.52,0.00045753,120]
[381920171,1756408871770,-8634.87026209,0.00045798,47]
[381920172,1756408871800,-208.0,0.0004582,30]
[381920173,1756408871826,-2264.10087164,0.00045832,58]
[381920174,1756408871853,-2000.0,0.00046,90]
[381920175,1756408871877,-1000.0,0.00046,120]
[381920176,1756408871903,-2098.62,0.00046027,120]
[381920177,1756408871931,-881.52,0.00046027,120]
[381920178,1756408871956,-2000.0,0.00046275,60]
[381920179,1756408871983,-881.52,0.00046301,120]
[381920180,1756408872010,-274.4,0.0004643,10]
[381920181,1756408872037,-153.0,0.000465,120]
[381920182,1756408872063,-2098.62,0.00046575,120]
[381920183,1756408872092,-881.52,0.00046575,120]
[381920184,1756408872117,-2000.0,0.00046823,60]
[381920185,1756408872143,-881.52,0.00046849,120]
[381920186,1756408872168,-500.0,0.00046849,30]
[381920187,1756408872200,-1000.0,0.00046888,60]
[381920188,1756408872229,-1000.0,0.00046888,60]
[381920189,1756408872255,-1000.0,0.00046999,120]
[381920190,1756408872280,-650.39,0.00047088,30]
[381920191,1756408872308,-362.47509418,0.00047111,120]
[381920192,1756408872336,-2098.62,0.00047123,120]
[381920193,1756408872365,-881.52,0.00047123,120]
[381920194,1756408872392,-343.0,0.00047262,15]
[381920195,1756408872418,-237.73292869,0.00047342,30]
[381920196,1756408872445,-428.74,0.00047359,10]
[381920197,1756408872471,-2000.0,0.00047371,60]
[381920198,1756408872498,-881.52,0.00047397,120]
[381920199,1756408872524,-208.0,0.0004742,30]
[381920200,1756408872551,-2183.31810187,0.00047524,50]
[381920201,1756408872577,-2000.0,0.00047524,50]
[381920202,1756408872605,-8634.87026209,0.00047525,50]
[381920203,1756408872740,-2098.62,0.00047671,120]
[381920204,1756408872768,-881.52,0.00047671,120]
[381920205,1756408872795,-788.70401,0.000477,120]
[381920206,1756408872820,-200.0,0.00047909,120]
[381920207,1756408872847,-881.52,0.00047945,120]
[381920208,1756408872873,-500.0,0.00047997,15]
[381920209,1756408872898,-345.73,0.00047997,15]
[381920210,1756408872923,-1000.0,0.00047999,120]
[381920211,1756408872949,-2105.41764886,0.00047999,60]
[381920212,1756408872973,-2000.0,0.00047999,60]
[381920213,1756408872998,-2511.57,0.00048,120]
[381920214,1756408873024,-1000.0,0.00048,120]
[381920215,1756408873048,-1208.76054378,0.000481,120]
[381920216,1756408873075,-2098.62,0.00048219,120]
[381920217,1756408873103,-881.52,0.00048219,120]
[381920218,1756408873130,-500.0,0.0004831,30]
[381920219,1756408873155,-500.0,0.0004831,60]
[381920220,1756408873181,-500.0,0.0004831,60]
[381920221,1756408873207,-500.0,0.0004831,60]
[381920222,1756408873232,-500.0,0.0004831,60]
[381920223,1756408873258,-500.0,0.0004831,60]
[381920224,1756408873284,-500.0,0.0004831,60]
[381920225,1756408873309,-500.0,0.0004831,60]
[381920226,1756408873334,-503.11841438,0.0004831,60]
[381920227,1756408873362,-519.14566752,0.0004831,60]
[381920228,1756408873388,-181.08010149,0.00048328,90]
[381920229,1756408873417,-151.0,0.00048328,90]
[381920230,1756408873444,-151.0,0.00048328,90]
[381920231,1756408873471,-1000.0,0.00048328,90]
[381920232,1756408873497,-300.0,0.00048328,90]
[381920233,1756408873524,-500.0,0.00048328,90]
[381920234,1756408873549,-151.0,0.00048328,90]
[381920235,1756408873576,-2000.0,0.00048328,90]
[381920236,1756408873602,-250.0,0.00048328,90]
[381920237,1756408873627,-250.0,0.00048328,90]
[381920238,1756408873654,-174.61919141,0.00048399,120]
[381920239,1756408873680,-151.0,0.00048399,120]
[381920240,1756408873707,-151.0,0.00048399,120]
[381920241,1756408873733,-1000.0,0.00048399,120]
[381920242,1756408873757,-300.0,0.00048399,120]
[381920243,1756408873783,-500.0,0.00048399,120]
[381920244,1756408873807,-151.0,0.00048399,120]
[381920245,1756408873831,-2000.0,0.00048399,120]
[381920246,1756408873856,-250.0,0.00048399,120]
[381920247,1756408873881,-250.0,0.00048399,120]
[381920248,1756408873906,-168.3888056,0.00048439,30]
[381920249,1756408873932,-151.0,0.00048439,30]
[381920250,1756408873958,-151.0,0.00048439,30]
[381920251,1756408873985,-2030.296672,0.00048439,30]
[381920252,1756408874011,-1000.0,0.00048439,30]
[381920253,1756408874036,-300.0,0.00048439,30]
[381920254,1756408874063,-165.59690079,0.00048439,30]
[381920255,1756408874090,-500.0,0.00048439,30]
[381920256,1756408874117,-151.0,0.00048439,30]
[381920257,1756408874144,-2000.0,0.00048439,30]
[381920258,1756408874170,-250.0,0.00048439,30]
[381920259,1756408874196,-250.0,0.00048439,30]
[381920260,1756408874223,-2000.0,0.00048467,60]
[381920261,1756408874253,-881.52,0.00048493,120]
[381920262,1756408874282,-2098.62,0.00048767,120]
[381920263,1756408874311,-881.52,0.00048767,120]
[381920264,1756408874339,-200.0,0.00048807,120]
[381920265,1756408874369,-1341.2306787,0.00048947,60]
[381920266,1756408874397,-1000.0,0.00048999,120]
[381920267,1756408874424,-162.380719,0.00048999,35]
[381920268,1756408874451,-151.0,0.00048999,35]
[381920269,1756408874478,-151.0,0.00048999,35]
[381920270,1756408874507,-1957.856,0.00048999,35]
[381920271,1756408874534,-1000.0,0.00048999,35]
[381920272,1756408874558,-300.0,0.00048999,35]
[381920273,1756408874584,-151.0,0.00048999,35]
[381920274,1756408874609,-500.0,0.00048999,35]
[381920275,1756408874633,-151.0,0.00048999,35]
[381920276,1756408874658,-2000.0,0.00048999,35]
[381920277,1756408874683,-250.0,0.00048999,35]
[381920278,1756408874708,-250.0,0.00048999,35]
[381920279,1756408874733,-182.84076622,0.00048999,35]
[381920280,1756408874759,-1000.0,0.00049,120]
[381920281,1756408874785,-13118.42,0.00049,14]
[381920282,1756408874809,-208.0,0.0004901,30]
[381920283,1756408874835,-156.587,0.00049014,30]
[381920284,1756408874860,-151.0,0.00049014,30]
[381920285,1756408874887,-151.0,0.00049014,30]
[381920286,1756408874913,-1888.0,0.00049014,30]
[381920287,1756408874940,-1000.0,0.00049014,30]
[381920288,1756408874964,-300.0,0.00049014,30]
[381920289,1756408874990,-151.0,0.00049014,30]
[381920290,1756408875016,-500.0,0.00049014,30]
[381920291,1756408875042,-151.0,0.00049014,30]
[381920292,1756408875067,-2000.0,0.00049014,30]
[381920293,1756408875093,-250.0,0.00049014,30]
[381920294,1756408875119,-250.0,0.00049014,30]
[381920295,1756408875144,-151.0,0.00049014,30]
[381920296,1756408875169,-200.0,0.00049015,120]
[381920297,1756408875194,-200.0,0.00049015,120]
[381920298,1756408875219,-212.54555804,0.00049015,120]
[381920299,1756408875246,-881.52,0.00049041,120]
[381920300,1756408875275,-8634.87026209,0.00049251,54]
[381920301,1756408875300,-990.05,0.00049263,11]
[381920302,1756408875326,-4531.45,0.00049263,11]
[381920303,1756408875353,-8989.12,0.00049263,11]
[381920304,1756408875379,-151.0,0.00049314,120]
[381920305,1756408875406,-151.0,0.00049314,120]
[381920306,1756408875435,-151.0,0.00049314,120]
[381920307,1756408875574,-151.0,0.00049314,120]
[381920308,1756408875601,-1000.0,0.00049314,120]
[381920309,1756408875627,-300.0,0.00049314,120]
[381920310,1756408875653,-151.0,0.00049314,120]
[381920311,1756408875679,-500.0,0.00049314,120]
[381920312,1756408875703,-151.0,0.00049314,120]
[381920313,1756408875728,-2000.0,0.00049314,120]
[381920314,1756408875754,-250.0,0.00049314,120]
[381920315,1756408875779,-250.0,0.00049314,120]
[381920316,1756408875810,-151.0,0.00049314,120]
[381920317,1756408875835,-500.0,0.00049315,30]
[381920318,1756408875860,-200.0,0.00049315,120]
[381920319,1756408875884,-200.0,0.00049315,120]
[381920320,1756408875908,-200.0,0.00049315,120]
[381920321,1756408875933,-2098.62,0.00049315,120]
[381920322,1756408875960,-881.52,0.00049315,120]
[381920323,1756408875985,-2570.16002128,0.00049315,10]
[381920324,1756408876309,232.64478309,0.00026,10]
[381920325,1756408876375,232.64478309,0.0004,30]
[381920326,1756408876407,163.520633,0.00013699,2]
[381920327,1756408876457,232.64478309,0.00031,120]
[381920328,1756408876520,8266.89,0.00032877,10]
[381920329,1756408876582,232.64478309,0.00029,10]
[381920330,1756408876662,232.64478309,0.0004,120]
[381920331,1756408876754,232.64478309,0.0004,10]
[381920332,1756408877433,6889.07,0.00032877,10]
[381920333,1756408877917,151.0,0.00049015,10]
[381920334,1756408878128,151.0,0.00049015,10]
[381920335,1756408878317,198.0,0.00049015,10]
[381920336,1756408878591,217.27834477,0.00026,10]
[381920337,1756408879009,217.27834477,0.0004,30]
[381920338,1756408879359,151.0,0.00049015,10]
[381920339,1756408879443,217.27834477,0.00031,120]
[381920340,1756408879565,151.0,0.00049015,10]
[381920341,1756408879752,151.0,0.00049015,10]
[381920342,1756408880013,151.0,0.00049015,10]
[381920343,1756408880229,151.0,0.00049015,10]
[381920344,1756408880430,245.0,0.00049015,10]
[381920345,1756408880934,217.27834477,0.00029,10]
[381920346,1756408881809,217.27834477,0.0004,120]
[381920347,1756408883166,217.27834477,0.0004,10]
[381920348,1756408888282,5740.89,0.00032877,10]
[381920349,1756408904709,-2072.0,0.00030277,7]
[381920350,1756408904736,-11093.81217182,0.00030277,7]
[381920351,1756408904761,-152.32685095,0.00030277,7]
[381920352,1756408904787,-325.54912672,0.00030277,7]
[381920353,1756408904814,-1461.5634356,0.00030277,7]
[381920354,1756408904839,-1013.32531825,0.00030277,10]
[381920355,1756408904869,-483881.42309666,0.00030277,20]
[381920357,1756408928195,-207204.23095492,0.00030277,20]
[381920358,1756408928227,-292795.76904508,0.00030277,20]
[381920359,1756408937411,-205438.76154852,0.00030277,20]
[381920360,1756408937436,-467.17,0.00030277,30]
[381920361,1756408967741,-600.0,0.00019561,20]
[381920362,1756408967781,-720.0,0.00021517,20]
[381920363,1756408967808,-8948.14,0.00022,7]
[381920364,1756408967836,-425.52029335,0.000222,7]
[381920365,1756408967862,-529.67291817,0.000222,7]
[381920366,1756408967887,-216.18903889,0.000222,7]
[381920367,1756408967914,-20806.17,0.000222,7]
[381920368,1756408967938,-417.15472785,0.000222,7]
[381920369,1756408967970,-8948.14,0.000234,7]
[381920370,1756408967996,-425.52029335,0.000234,7]
[381920371,1756408968028,-864.0,0.00023668,20]
[381920372,1756408968055,-529.67291817,0.000239,7]
[381920373,1756408968080,-216.18903889,0.000239,7]
[381920374,1756408968105,-417.15472785,0.000239,7]
[381920375,1756408968131,-160.0,0.00024,7]
[381920376,1756408968156,-160.0,0.00024,7]
[381920377,1756408968182,-160.0,0.00024,7]
[381920378,1756408968207,-845.47023312,0.00024,7]
[381920379,1756408968232,-160.0,0.00024,7]
[381920380,1756408968257,-160.0,0.00024,7]
[381920381,1756408968285,-20806.17,0.000243,7]
[381920382,1756408968311,-160.0,0.000243,7]
[381920383,1756408968336,-12500.0,0.00024357,7]
[381920384,1756408968362,-160.0,0.0002436,7]
[381920385,1756408968399,-425.52029335,0.0002436,7]
[381920386,1756408968444,-160.0,0.0002436,7]
[381920387,1756408968490,-845.47023312,0.0002436,7]
[381920388,1756408968536,-12500.0,0.00024365,7]
[381920389,1756408968582,-12500.0,0.00024374,7]
[381920390,1756408968631,-529.67291817,0.0002438,7]
[381920391,1756408968680,-216.18903889,0.0002438,7]
[381920392,1756408968721,-417.15472785,0.0002438,7]
[381920393,1756408968746,-160.0,0.0002438,7]
[381920394,1756408968770,-1758.55817261,0.00024383,7]
[381920395,1756408968794,-12500.0,0.00024383,7]
[381920396,1756408968820,-274421.93185962,0.0002464,7]
[381920397,1756408968845,-151.0,0.0002464,7]
[381920398,1756408968869,-151.0,0.0002464,7]
[381920399,1756408968893,-151.0,0.0002464,7]
[381920400,1756408968918,-151.0,0.0002464,7]
[381920401,1756408968944,-249.718,0.0002464,7]
[381920402,1756408968968,-151.0,0.0002464,7]
[381920403,1756408968993,-151.0,0.0002464,7]
[381920404,1756408969017,-151.0,0.0002464,7]
[381920405,1756408969043,-151.0,0.0002464,7]
[381920406,1756408969068,-151.0,0.0002464,7]
[381920407,1756408969093,-244.136984,0.0002464,7]
[381920408,1756408969117,-285.676259,0.0002464,7]
[381920409,1756408969142,-244.136984,0.0002464,7]
[381920410,1756408969168,-244.136984,0.0002464,7]
[381920411,1756408969194,-244.136984,0.0002464,7]
[381920412,1756408969218,-151.0,0.0002464,7]
[381920413,1756408969242,-151.0,0.0002464,7]
[381920414,1756408969266,-151.0,0.0002464,7]
[381920415,1756408969292,-151.0,0.0002464,7]
[381920416,1756408969316,-151.0,0.0002464,7]
[381920417,1756408969340,-179.264534,0.0002464,7]
[381920418,1756408969366,-179.264534,0.0002464,7]
[381920419,1756408969392,-179.264534,0.0002464,7]
[381920420,1756408969418,-66.60276975,0.0002464,7]
[381920421,1756408972801,-112.66176425,0.0002464,7]
[381920422,1756408972826,-151.0,0.0002464,7]
[381920423,1756408972850,-151.0,0.0002464,7]
[381920424,1756408972873,-151.0,0.0002464,7]
[381920425,1756408972898,-151.0,0.0002464,7]
[381920426,1756408972922,-151.0,0.0002464,7]
[381920427,1756408972945,-151.0,0.0002464,7]
[381920428,1756408972968,-152.614595,0.0002464,7]
[381920429,1756408972991,-167.31144,0.0002464,7]
[381920430,1756408973016,-167.31144,0.0002464,7]
[381920431,1756408973041,-167.31144,0.0002464,7]
[381920432,1756408973064,-167.31144,0.0002464,7]
[381920433,1756408973087,-151.0,0.0002464,7]
[381920434,1756408973111,-151.0,0.0002464,7]
[381920435,1756408973136,-151.0,0.0002464,7]
[381920436,1756408973161,-151.0,0.0002464,7]
[381920437,1756408973185,-151.0,0.0002464,7]
[381920438,1756408973208,-151.0,0.0002464,7]
[381920439,1756408973232,-151.0,0.0002464,7]
[381920440,1756408973256,-194.080422,0.0002464,7]
[381920441,1756408973281,-151.0,0.0002464,7]
[381920442,1756408973306,-151.0,0.0002464,7]
[381920443,1756408973330,-151.0,0.0002464,7]
[381920444,1756408973355,-151.0,0.0002464,7]
[381920445,1756408973382,-151.0,0.0002464,7]
[381920446,1756408973408,-195.247387,0.0002464,7]
[381920447,1756408973433,-151.0,0.0002464,7]
[381920448,1756408973457,-151.0,0.0002464,7]
[381920449,1756408973482,-151.0,0.0002464,7]
[381920450,1756408973507,-288.321397,0.0002464,7]
[381920451,1756408973531,-151.0,0.0002464,7]
[381920452,1756408973554,-151.0,0.0002464,7]
[381920453,1756408973577,-705.469654,0.0002464,7]
[381920454,1756408973707,-705.469654,0.0002464,7]
[381920455,1756408973732,-151.0,0.0002464,7]
[381920456,1756408973757,-151.0,0.0002464,7]
[381920457,1756408973780,-151.0,0.0002464,7]
[381920458,1756408973806,-336.613849,0.0002464,7]
[381920459,1756408973832,-705.469654,0.0002464,7]
[381920460,1756408973857,-151.0,0.0002464,7]
[381920461,1756408973882,-336.613849,0.0002464,7]
[381920462,1756408973906,-705.469654,0.0002464,7]
[381920463,1756408973930,-336.613849,0.0002464,7]
[381920464,1756408973955,-243.162603,0.0002464,7]
[381920465,1756408973980,-336.613849,0.0002464,7]
[381920466,1756408974004,-283.31792,0.0002464,7]
[381920467,1756408974030,-240.721462,0.0002464,7]
[381920468,1756408974055,-151.0,0.0002464,7]
[381920469,1756408974081,-240.721462,0.0002464,7]
[381920470,1756408974106,-240.721462,0.0002464,7]
[381920471,1756408974131,-240.721462,0.0002464,7]
[381920472,1756408974156,-151.0,0.0002464,7]
[381920473,1756408974181,-151.0,0.0002464,7]
[381920474,1756408974207,-151.0,0.0002464,7]
[381920475,1756408974232,-151.0,0.0002464,7]
[381920476,1756408974258,-151.0,0.0002464,7]
[381920477,1756408974283,-151.0,0.0002464,7]
[381920478,1756408974308,-151.422193,0.0002464,7]
[381920479,1756408974334,-151.0,0.0002464,7]
[381920480,1756408974360,-151.0,0.0002464,7]
[381920481,1756408974388,-151.0,0.0002464,7]
[381920482,1756408974413,-154.886015,0.0002464,7]
[381920483,1756408974440,-151.0,0.0002464,7]
[381920484,1756408974466,-151.0,0.0002464,7]
[381920485,1756408974491,-151.0,0.0002464,7]
[381920486,1756408974516,-151.0,0.0002464,7]
[381920487,1756408974540,-151.0,0.0002464,7]
[381920488,1756408974564,-195.202485,0.0002464,7]
[381920489,1756408974589,-195.202485,0.0002464,7]
[381920490,1756408974614,-195.202485,0.0002464,7]
[381920491,1756408974638,-190.233192,0.0002464,7]
[381920492,1756408974662,-151.0,0.0002464,7]
[381920493,1756408974687,-195.202485,0.0002464,7]
[381920494,1756408974711,-190.233192,0.0002464,7]
[381920495,1756408974736,-190.233192,0.0002464,7]
[381920496,1756408974760,-190.233192,0.0002464,7]
[381920497,1756408974785,-157.156352,0.0002464,7]
[381920498,1756408974810,-151.0,0.0002464,7]
[381920499,1756408974834,-157.156352,0.0002464,7]
[381920500,1756408974860,-157.156352,0.0002464,7]
[381920501,1756408974886,-157.156352,0.0002464,7]
[381920502,1756408974912,-151.0,0.0002464,7]
[381920503,1756408974938,-151.0,0.0002464,7]
[381920504,1756408974962,-151.0,0.0002464,7]
[381920505,1756408974987,-151.0,0.0002464,7]
[381920506,1756408975011,-151.0,0.0002464,7]
[381920507,1756408975035,-151.0,0.0002464,7]
[381920508,1756408975059,-151.0,0.0002465,7]